Cogmind - Beta 15 @@@ ROGUE MODE // 2025.08.07 @ 13:50:28 Player: JuustuToug Result: Destroyed by RY-VLA(R) with Subdweller Laser Performance ------------- Evolutions (0) 0 Regions Visited (2) 400 Robots Destroyed (15) 75 Value Destroyed (562) 562 Prototype IDs (11) 220 Alien Tech Used (0) 0 Bonus (0) 0 TOTAL SCORE: 1257 Bonus ------- None Cogmind --------- Core Integrity 0/250 Matter 138/300 Energy 98/100 System Corruption 0% Temperature Cool (6) Movement Core (50) Location -10/Subcaves Parts ------- > --- POWER (1) -------- (None) > --- PROPULSION (2) --- (None) > --- UTILITY (2) ------ Sensor Array Signal Interpreter > --- WEAPON (2) ------- (None) > --- INVENTORY (5) ---- Subdweller Power Source Small Storage Unit Makeshift Sword Peak State ------------ > --- POWER ------------ Light Nuclear Core > --- PROPULSION ------- Spiked Treads Spiked Treads > --- UTILITY ---------- Sensor Array Signal Interpreter > --- WEAPON ----------- Barrage Gun Makeshift Sword > --- INVENTORY -------- Subdweller Power Source Spiked Treads Small Storage Unit Barrage Gun Subdweller Shrapnel Launcher [Rating: 17] Favorites ----------- Power Ion Engine Engine Ion Engine Power Core Light Nuclear Core Propulsion Spiked Treads Treads Spiked Treads Leg Aluminum Leg Utility Sensor Array Device Sensor Array Storage Small Storage Unit Processor Signal Interpreter Weapon Makeshift Sword Energy Gun EM Pulse Gun Ballistic Gun Barrage Gun Launcher Subdweller Shrapnel Launcher Special Weapon Mining Laser Slashing Weapon Makeshift Sword Build | -11 -10 -10 ------- Run | Yrd Mat Sub Slots Evolved . | . . . Power . | . . . Propulsion . | . . . Utility . | . . . Weapon . | . . . Parts Attached 23 | 7 2 14 Power 4 | 1 . 3 Engine 3 | 1 . 2 Core 1 | . . 1 Reactor . | . . . Propulsion 5 | 2 . 3 Treads 3 | . . 3 Leg 2 | 2 . . Wheel . | . . . Hover . | . . . Flight . | . . . Utility 3 | 1 1 1 Device 1 | . 1 . Storage 1 | 1 . . Processor 1 | . . 1 Hackware . | . . . Protection . | . . . Artifact . | . . . Weapon 11 | 3 1 7 Energy Gun 4 | 2 . 2 Energy Cannon . | . . . Ballistic Gun 4 | 1 . 3 Ballistic Cannon . | . . . Launcher 1 | . . 1 Special Weapon 1 | . 1 . Impact Weapon . | . . . Slashing Weapon 1 | . . 1 Piercing Weapon . | . . . Special Melee Weapon . | . . . Unidentified Prototypes . | . . . Parts Lost 5 | . . 5 Power 1 | . . 1 Propulsion 1 | . . 1 Utility . | . . . Weapon 3 | . . 3 Highest Loss Streak 3 | . . 3 To Critical Strikes . | . . . Average Backups 5 | 2 6 5 Power 1 | . 1 2 Propulsion 1 | . 2 1 Utility 1 | . . 1 Weapon 1 | . 1 1 Tool/Special . | . . . Unused Backups 10 | . 2 8 Power 2 | . . 2 Propulsion 6 | . 2 4 Utility 1 | . . 1 Weapon 1 | . . 1 Tool/Special . | . . . Average Slot Usage (%) 98 | . 87 99 Engine 11 | . 14 11 Core 2 | . . 2 Treads 15 | . . 16 Leg 12 | . 28 11 Device 13 | . 2 14 Storage 5 | . 14 4 Processor 8 | . . 9 Energy Gun 7 | . 26 5 Ballistic Gun 12 | . . 13 Slashing Weapon 7 | . . 8 Peak Build Rating 17 | 6 8 17 Average Rating 13 | 4 6 13 On Entrance 4 | . 6 8 Naked Turns . | . . . Heaviest Build 18 | 14 15 18 Greatest Support 40 | 20 20 40 Greatest Overweight (x) 1 | 1 . . Average Overweight (x) . | . . . Largest Inventory Capacity 8 | 8 8 8 Average Capacity 6 | 6 8 5 Most Carried 8 | 4 8 8 Average Carried 5 | 2 6 5 Final Capacity 8 | 8 8 5 Final Carried 8 | 4 8 3 Class Distribution -------------------- 50% | Derelict-Mutant 49% | Mutant Dominant Class ---------------- Mutant | -10/Materials Derelict-Mutant | -10/Subcaves Resources | -11 -10 -10 ----------- Run | Yrd Mat Sub Matter Collected 625 | 223 67 335 Remotely . | . . . Salvage Created 712 | . 118 594 Parts 48 | . 6 42 Haulers Intercepted . | . . . Recyclers Shooed . | . . . Parts Field Recycled . | . . . Retrieved Matter . | . . . Parts Self-Destructed 10 | . . 10 Prevented . | . . . Kills | -11 -10 -10 ------- Run | Yrd Mat Sub Combat Hostiles Destroyed 14 | . 2 12 Melee 5 | . . 5 Guns 8 | . 2 6 AOE 1 | . . 1 Classes Destroyed 5 | . 2 3 Watcher 1 | . 1 . Swarmer 1 | . . 1 Grunt 2 | . 2 . Sentry 1 | . . 1 Subdweller 10 | . . 10 Best Kill Streak 2 | . 2 2 Combat Bots Only 2 | . 2 2 Max Kills in Single Turn 1 | . 1 1 Gunslinging . | . . . Exploded 1 | . . 1 Melee 1 | . . 1 Uniques/NPCs Destroyed . | . . . Combat | -11 -10 -10 -------- Run | Yrd Mat Sub Hostile Shots Fired 78 | . 8 70 Missed 21 | . 3 18 Hits 57 | . 5 52 Projectile 57 | . 5 52 AOE 3 | . . 3 Critical Strikes 2 | . . 2 Damage Taken 1437 | . 56 1381 Core 251 | . 10 241 Absorbed by Shields . | . . . Core Remaining (%) 100 | 100 . . Volleys Fired 87 | . 11 76 Largest 2 | . 2 2 Hottest 100 | . 100 100 Shots Fired 127 | . 21 106 Gun 108 | . 20 88 Cannon . | . . . Launcher 3 | . . 3 Special 16 | . 1 15 Kinetic 54 | . . 54 Thermal 16 | . 1 15 Explosive . | . . . Electromagnetic 57 | . 20 37 Robot Hit Streak 14 | . 6 14 Robot Miss Streak 2 | . 1 2 Penetration Max . | . . . Secondary Targets . | . . . Shots Hit Robots 94 | . 11 83 Core Hits 27 | . 6 21 Critical Kills . | . . . Critical Parts Destroyed . | . . . Critical Strikes 1 | . . 1 Corrupt 1 | . . 1 Melee Attacks 40 | . . 40 Impact . | . . . Slashing 40 | . . 40 Piercing . | . . . Sneak Attacks . | . . . Combat Hostiles . | . . . Follow-up Attacks . | . . . Damage Inflicted 1709 | . 153 1556 Guns 938 | . 153 785 Cannons . | . . . Explosions 231 | . . 231 Melee 468 | . . 468 Ramming . | . . . Kinetic 653 | . . 653 Thermal 72 | . . 72 Explosive . | . . . Electromagnetic 516 | . 153 363 Impact . | . . . Slashing 468 | . . 468 Piercing . | . . . Highest Corruption . | . . . Average Corruption . | . . . Corruption Purged . | . . . Corruption Blocked . | . . . Overload Shots . | . . . Overflow Damage . | . . . Projectiles . | . . . Explosions . | . . . Melee . | . . . Knockbacks . | . . . Impact . | . . . Kinetic . | . . . Secondary . | . . . Self-Inflicted Damage . | . . . Shots . | . . . Rammed . | . . . Targets Rammed . | . . . Kicked . | . . . Crushed . | . . . Highest Temperature 159 | . 159 5 Average Temperature 55 | . 58 3 Received Heat Transfer 306 | . 33 273 Siege Activations . | . . . Martial Activations . | . . . Shielding Activations . | . . . Robots Disrupted . | . . . Combat Hostiles . | . . . Robots Corrupted 2 | . . 2 Combat Hostiles 2 | . . 2 Parts Fried 4 | . . 4 Impact Corruptions . | . . . Robots Melted . | . . . Combat Hostiles . | . . . Parts Melted 3 | . . 3 Heat Transferred 150 | . . 150 Parts Sabotaged . | . . . Parts Stolen . | . . . Parts Stripped . | . . . Power Chain Reactions . | . . . Alert | -11 -10 -10 ------- Run | Yrd Mat Sub Maximum Alert Level . | . . . Low Security (%) 100 | 100 100 . Level 1 . | . . . Level 2 . | . . . Level 3 . | . . . Level 4 . | . . . Level 5 . | . . . High Security . | . . . Max Security . | . . . Peak Influence 50 | . 50 . Initial . | . . . Average 7 | . 9 . Influence Increases 127 | . 72 55 Destroy 0b10 Robot/C 80 | . 40 40 Destroy 0b10 Robot/NC 5 | . 5 . Destroy Leader 12 | . 12 . Disable Machine 15 | . 15 . Lose Combat Pursuer 15 | . . 15 Influence Decreases 127 | . 72 55 Time Decay 112 | . 72 40 Lost Part 15 | . . 15 Squads Dispatched . | . . . Investigation . | . . . Extermination . | . . . Reinforcement . | . . . Assault . | . . . Garrison . | . . . Intercept . | . . . Searches Triggered . | . . . Construction Impeded . | . . . Haulers Reinforced . | . . . Active Scanning Responses . | . . . Cargo Convoy Interrupts . | . . . Stealth | -11 -10 -10 --------- Run | Yrd Mat Sub Distress Signals . | . . . Communications Jammed . | . . . Distress Signals . | . . . Times Spotted 19 | . 3 16 Peak Tracking Total 3 | . 2 3 Tactical Retreats 1 | . . 1 Traps | -11 -10 -10 ------- Run | Yrd Mat Sub Traps Triggered 3 | . . 3 Indirectly . | . . . Trap Hack Attempts . | . . . Triggered . | . . . Disarmed . | . . . Reprogrammed . | . . . Reused . | . . . Traps Extracted . | . . . Installed . | . . . Triggered . | . . . Machines | -11 -10 -10 ---------- Run | Yrd Mat Sub Machines Disabled 2 | . 1 1 Max in Single Turn 1 | . 1 1 Machines Repaired . | . . . Machines Dismantled . | . . . Machines Sabotaged . | . . . Overloaded Fab Kills . | . . . Hacking | -11 -10 -10 --------- Run | Yrd Mat Sub Machines Accessed 4 | . . 4 Terminals . | . . . Fabricators . | . . . Repair Stations . | . . . Recycling Units . | . . . Scanalyzers . | . . . Garrison Access . | . . . Total Hacks 7 | . . 7 Successful 7 | . . 7 Failed . | . . . Catastrophic . | . . . Database Lockouts . | . . . Manual . | . . . Terminals . | . . . Fabricators . | . . . Repair Stations . | . . . Recycling Units . | . . . Scanalyzers . | . . . Garrison Access . | . . . Terminal Hacks 7 | . . 7 Record 4 | . . 4 Open Door 1 | . . 1 Proto ID Catalog 1 | . . 1 Release Object 1 | . . 1 Fabricator Hacks . | . . . Repair Station Hacks . | . . . Recycling Unit Hacks . | . . . Scanalyzer . | . . . Garrison Access Hacks . | . . . Unauthorized Hacks . | . . . Terminals . | . . . Fabricators . | . . . Repair Stations . | . . . Recycling Units . | . . . Scanalyzers . | . . . Garrison Access . | . . . Data Cores Recovered . | . . . Used . | . . . Hacking Detections . | . . . Full Trace Events . | . . . Feedback Events . | . . . Feedback Blocked . | . . . Robot Schematics Acquired . | . . . Robots Built . | . . . Authchips . | . . . Time . | . . . Total Robot Build Rating . | . . . Part Schematics Acquired . | . . . Parts Built . | . . . Authchips . | . . . Time . | . . . Total Part Build Rating . | . . . Parts Repaired . | . . . Time . | . . . Parts Recycled . | . . . Recycled Matter . | . . . Retrieved Matter . | . . . Retrieved Components . | . . . Parts Scanalyzed . | . . . Part Schematics Acquired . | . . . Parts Damaged . | . . . Bothacking | -11 -10 -10 ------------ Run | Yrd Mat Sub Used RIF Installer . | . . . Robots Hacked . | . . . Non-combat . | . . . Combat . | . . . Robot Hacks Applied . | . . . Relay Couplers Released . | . . . Fabnet Peak Effective % . | . . . Robots Rewired . | . . . Allies Hacked . | . . . Hacks Repelled . | . . . Allies | -11 -10 -10 -------- Run | Yrd Mat Sub Total Allies . | . . . Largest Group . | . . . Highest-Rated Group . | . . . Highest-Rated Ally . | . . . Total Orders . | . . . Ally Attacks . | . . . Total Damage . | . . . Kills . | . . . Allies Corrupted . | . . . Allies Melted . | . . . Intel | -11 -10 -10 ------- Run | Yrd Mat Sub Active Infowar (turns) 4049 | . 65 3984 Sensors 4049 | . 65 3984 Robot Analysis Total . | . . . Derelict Logs Recovered 1 | . . 1 Drone Launches . | . . . Drone Recoveries . | . . . Exploration | -11 -10 -10 ------------- Run | Yrd Mat Sub Turns Passed 4372 | 67 321 3984 Spaces Moved 2515 | 46 168 2301 Core 16 | 10 . 6 Treads 1373 | . . 1373 Legs 1126 | 36 168 922 Wheels . | . . . Hover . | . . . Flight . | . . . Fastest Speed 50 | 50 120 50 Average Speed 141 | 110 120 143 Slowest Speed 160 | 120 120 160 Overloaded Moves . | . . . Propulsion Burnouts . | . . . Robots Hopped . | . . . Potential Cave-ins . | . . . Cave-ins Triggered . | . . . Exploration Rate (%) 38 | 4 21 91 Regions Visited 2 Branch Regions 1 Pre-discovered Areas 2 | . . 2 Known Exits Taken . | . . . Unknown Exits Taken 2 | 1 1 . Scrap Searched 15 | . . 15 Spaces Dug 6 | . . 6 Terrain Destroyed 29 | . . 29 Melee 6 | . . 6 Projectile . | . . . AOE 23 | . . 23 Terrain Rammed . | . . . Walls Destroyed . | . . . Machines Disabled . | . . . Actions | -11 -10 -10 --------- Run | Yrd Mat Sub Total 3131 | 62 264 2805 Wait 404 | . 74 330 Move 2513 | 45 167 2301 Hop . | . . . Pick Up 28 | 10 7 11 Fast Attach 2 | . . 2 Attach 11 | 6 1 4 Detach . | . . . Swap 24 | 1 2 21 Drop 21 | . 2 19 Fire 87 | . 11 76 Melee 40 | . . 40 Ram . | . . . Kick . | . . . Crush . | . . . Escape Stasis . | . . . Rewire . | . . . Trap . | . . . Miscellaneous 1 | . . 1 Route ------- -11/Scrapyard -10/Materials (discovered 2 exits: [*Min] / *Sub) -10/Subcaves (discovered 2 exits: *Mat x2) History --------- Turn | Location | Event 12 | -11/Scrapyard | Discovered new exit (range 16) 68 | -11/Scrapyard | Entered Materials 156 | -10/Materials | Discovered new exit (range 16) 251 | -10/Materials | Discovered new exit (range 6) 308 | -10/Materials | Build established: Mutant 389 | -10/Materials | Entered Subcaves 390 | -10/Subcaves | Approached by a straggling Scientist 438 | -10/Subcaves | A swath of the cavern ceiling suddenly collapsed 1130 | -10/Subcaves | Discovered new exit (range 14) 1258 | -10/Subcaves | Shifting Twisted Machinery released Spk. Treads 1294 | -10/Subcaves | Shifting Twisted Machinery released Hvy. Battle Rifle 1453 | -10/Subcaves | Visited Clippyterm 1456 | -10/Subcaves | Learned Factory trap positions 1505 | -10/Subcaves | A swath of the cavern ceiling suddenly collapsed 1653 | -10/Subcaves | Released subatomizers from SUBCON Basin 1703 | -10/Subcaves | Discovered new exit (range 9) 1714 | -10/Subcaves | Identified exit to Materials 2443 | -10/Subcaves | Build established: Derelict-Mutant 2497 | -10/Subcaves | Learned location of Zion (-6) 2497 | -10/Subcaves | Met a Zionite searching for "candidates" 3068 | -10/Subcaves | Visited 4L-MR0's lab 3351 | -10/Subcaves | Shifting Twisted Machinery released Spk. Treads 3352 | -10/Subcaves | Shifting Twisted Machinery released Sub. Machine Gun 4313 | -10/Subcaves | Ambushed by Subdweller buried in earth 4317 | -10/Subcaves | Core integrity fell below 50% 4340 | -10/Subcaves | Core integrity fell below 20% 4370 | -10/Subcaves | Lost 3 parts (1n2w) 4373 | -10/Subcaves | Destroyed by RY-VLA(R) with Subdweller Laser Last Messages --------------- 03736_ Acquired Sub. Power Source. 03739_ Acquired 13 matter. 03752_ Acquired 15 matter. 03833_ Triggered Shrapnel Trap. 03833_ An expanding cloud of shrapnel blasts out in all directions. 03839_ Triggered Piercing Trap. 03839_ Spikes shoot up from the floor. 03839_ Critical hit (Impale). 03890_ O3-7GE(u) tweaks Twisted Machinery. 04310_ Acquired 7 matter. 04314_ J1-5GR(R): "ARGHSUB!" 04318_ Spk. Treads destroyed. 04325_ Barrage Gun destroyed. 04335_ J1-5GR(R) destroyed. 04339_ Barrage Gun destroyed. 04347_ 78-NNA(R): "HIDIE!" 04369_ Dropped Spk. Treads. 04370_ Dropped Sub. Shrapnel Launcher. 04370_ Dropped Lgt. Nuclear Core. Map ----- +----------------------------------------------------+ | # ### #????????????????????????????????????? | | ## ## ## #????????????????????????????????????? | | ?##### #????????????????????????????????????? | | ?????## #????????????????????????????????????? | | ??????#### ##????????????????????????????????????? | | ?????????###?????????????????????????????????????? | | ?????????????????????????????????????????????????? | | ?????????????????????????????????????????????????? | | ?????????????????????????????????????????????????? | | ???????????????????????????????????###???????????? | | ??????????????????????????x??????### #??#####????? | | ?????????????????? ?????????????# ### #????? | | ???????????????? ?????????## #????? | | ????????????????? ?????????# ##???? | | ????????????????? ###?????## ?# ##? | | ??????????????????# ???### ### """ ## | | ??????????????????# #### ## " """" | | ????????????????????# " """ | | ????????????????????## * """ | | ????????????????????# ## R ]==X "" " | | ????????????????????# #### """ | | ????????????????????# R ##??# """ | | ????????????????????## ##??## "" | | ???????????????????## #######" ### | | ??????????????????## ##### #?##"""" " | | ??????????????????# @ #### ### " # | | ??????????????????# ; " ## | | ??????????????????###;; ## | | ????????????????????#; ## | | ????????????????????#; | | ????????????????????#; % "" " | | ????????????????????# ;! ; " "#" " " | | ???????????????? ; # #######"" ## | | ??????????????? ; ; ;# ##?????# #? | | ??????????????? # ##### ####??????# ##? | | ??????????????????#????## #?????????####?? | | ????????????????????????# #####??????????????? | | ????????????????????????#######??????????????????? | | ?????????????????????????????????????????????????? | | ?????????????????????????????????????????????????? | | ?????????????????????????????????????????????????? | | ?????????????????????????????????????????????????? | | ?????????????????????????????????????????????????? | | ?????????????????????????????????????????????????? | | ?????????????????????????????????????????????????? | | ?????????????????????????????????????????????????? | | ?????????????????????????????????????????????????? | | ?????????????????????????????????????????????????? | | ?????????????????????????????????????????????????? | | ?????????????????????????????????????????????????? | +----------------------------------------------------+ Best States ------------- Heat Dissipation 25 Energy Generation 15 Energy Capacity 265 Matter Stores 300 Matter Capacity 300 Sight Range 16 Robot Scan Range 14 Terrain Scan Density 10 Evasion (%) 55 Recoil Reduction 2 Item Schematics ----------------- None Robot Schematics ------------------ None Fabricated ------------ Nothing Repaired ---------- Nothing Alien Tech Used ----------------- None Achievements -------------- None Challenges ------------ None Game ------ Seed SpikedMeleeDatajack Manual? 0 Play Time 00:29:57 Cumulative 45.7 hours Start 2025.08.07 @ 13:16:13 End 2025.08.07 @ 13:50:28 Sessions 1 Manual Loads 0 Difficulty Rogue Special Mode None Game No. 29 Rogue 29 Adventurer 0 Explorer 0 Win Type - Total 1 Types 1/0/0/0/0/0/0/0/0/0 Lore% 44 Gallery% 36 Achievement% 34 Wizard Run 0 Options --------- Layout 1 ASCII 0 Keyboard 0 Movement Mouse Keybinds 0 Fullscreen 1 Font 24/Smallcaps Map View 50x35 Zoom Use 0% Tactical HUD 1 Map Filters NONE Filters NONE Steam 1 RUN: 574676e1-cddc-4179-90d6-0a9154a5b4d2